[Event "Lliga Catalana 2024"]
[Site "Catalonia"]
[Date "2024.02.10"]
[Round "4.1"]
[White "Edouard, Romain"]
[Black "Gonzalez Garcia, Jose"]
[Result "1/2-1/2"]
[ECO "D36"]
[WhiteElo "2523"]
[BlackElo "2451"]
[Annotator "RC"]
[PlyCount "172"]
[EventDate "2024.01.18"]
[EventType "team-tourn"]
[EventCountry "ESP"]
[SourceTitle "playchess.com"]
[Source "ChessBase"]
[SourceQuality "1"]
[TimeControl "5400+30"]

1. d4 {[%emt 0:00:02]} Nf6 {[%emt 0:00:21]} 2. c4 {[%emt 0:00:06]} e6 {[%emt 0:00:04]} 3. Nc3 {[%emt 0:00:14]} d5 {[%emt 0:00:25]} 4. cxd5 {[%emt 0:01:42]} exd5 {[%emt 0:00:07]} 5. Bg5 {[%emt 0:00:05]} c6 {[%emt 0:00:18]} 6. e3 {[%emt 0:01:32]} Be7 {[%emt 0:01:40]} 7. Bd3 {[%emt 0:00:18]} Nbd7 {[%emt 0:00:07]} 8. Nge2 {[%emt 0:00:26]} h6 {[%emt 0:00:30]} 9. Bh4 {[%emt 0:00:22]} Nh5 {[%emt 0:00:13]} 10. Bxe7 {[%emt 0:00:26]} Qxe7 {[%emt 0:00:05]} 11. Qc2 {[%emt 0:02:58]} Nb6 {[%emt 0:01:11]} 12. h3 {[%emt 0:00:37]} Nf6 {[%emt 0:02:21]} 13. O-O-O {[%emt 0:00:25]} Bd7 {[%emt 0:10:02]} 14. Kb1 {[%emt 0:02:02]} O-O-O {[%emt 0:02:10]} 15. Nc1 {[%emt 0:00:09]} Kb8 {[%emt 0:00:10]} 16. Nb3 {[%emt 0:01:08]} Be6 {[%emt 0:03:37]} 17. f3 {[%emt 0:01:47]} Nfd7 {[%emt 0:02:48]} 18. Rhe1 {[%emt 1:25:11]} c5 {[%emt 1:13:21]} 19. dxc5 {[%emt 0:00:00]} Nxc5 {[%emt 0:00:00]} 20. Nxc5 {[%emt 0:00:00]} Qxc5 {[%emt 0:00:00]} 21. Qf2 {[%emt 0:00:00]} Ka8 {[%emt 0:00:00]} 22. Qg3 {[%emt 0:00:00]} g5 {[%emt 0:00:00]} 23. Rc1 {[%emt 0:00:00]} Nc4 {[%emt 0:00:00]} 24. b3 {[%emt 0:00:00]} Qb4 {[%emt 0:00:00]} 25. Ka1 {[%emt 0:00:00]} Qd6 {[%emt 0:00:00]} 26. f4 {[%emt 0:00:00]} Nxe3 {[%emt 0:00:00]} 27. Nb5 {[%emt 0:00:00]} gxf4 {[%emt 0:00:00]} 28. Qg7 {[%emt 0:00:00]} Qb6 {[%emt 0:00:00]} 29. Nc7+ {[%emt 0:00:00]} Kb8 {[%emt 0:00:00]} 30. Qf6 {[%emt 0:00:00]} Bf5 {[%emt 0:00:00]} 31. Qxb6 {[%emt 0:00:00]} axb6 {[%emt 0:00:00]} 32. Bxf5 {[%emt 0:00:00]} Nxf5 {[%emt 0:00:00]} 33. Nb5 {[%emt 0:00:00]} Rhe8 {[%emt 0:00:00]} 34. Rf1 {[%emt 0:00:00]} Ng3 {[%emt 0:00:00]} 35. Rf3 {[%emt 0:00:00]} d4 {[%emt 0:00:00]} 36. Rd1 {[%emt 0:00:00]} Ne2 {[%emt 0:00:00]} 37. Rd2 {[%emt 0:00:00]} Re4 {[%emt 0:00:00]} 38. Rfd3 {[%emt 0:00:00]} Rd5 {[%emt 0:02:02]} 39. a4 {[%emt 0:00:00]} Nc1 {[%emt 0:00:07]} 40. Rf3 {[%emt 0:00:00]} Re3 {[%emt 0:00:38]} 41. Rd1 {[%emt 0:00:00]} Nxb3+ {[%emt 0:00:37]} 42. Ka2 {[%emt 0:00:00]} Nc5 {[%emt 0:01:59]} 43. Rxf4 {[%emt 0:00:51]} Nxa4 {[%emt 0:01:05]} 44. Rdxd4 {[%emt 0:00:03]} Rxb5 {[%emt 0:01:03]} 45. Rxa4 {[%emt 0:00:03]} Re2+ {[%emt 0:00:21]} 46. Ka3 {[%emt 0:00:14]} Re3+ {[%emt 0:01:03]} 47. Ka2 {[%emt 0:00:01]} Rg5 {[%emt 0:01:16]} 48. g4 {[%emt 0:03:54]} Rd5 {[%emt 0:01:03]} 49. Rab4 {[%emt 0:00:30]} Rxh3 {[%emt 0:02:44]} 50. Rxf7 {[%emt 0:00:12]} Ka7 {[%emt 0:00:12]} 51. Rf6 {[%emt 0:01:25]} b5 {[%emt 0:00:30]} 52. Rg6 {[%emt 0:00:43]} Rh2+ {[%emt 0:00:51]} 53. Ka3 {[%emt 0:04:31]} Rh4 {[%emt 0:00:38]} 54. Re4 {[%emt 0:03:00]} Rg5 {[%emt 0:01:07]} 55. Rge6 {[%emt 0:01:18]} b6 {[%emt 0:00:31]} 56. Rd4 {[%emt 0:01:07]} Ka6 {[%emt 0:00:31]} 57. Rdd6 {[%emt 0:00:50]} Rh3+ {[%emt 0:00:04]} 58. Kb2 {[%emt 0:00:26]} h5 {[%emt 0:00:37]} 59. gxh5 {[%emt 0:00:39]} Rg2+ {[%emt 0:00:21]} 60. Kc1 {[%emt 0:00:01]} Rh1+ {[%emt 0:00:19]} 61. Rd1 {[%emt 0:00:02]} Rxh5 {[%emt 0:00:04]} 62. Re3 {[%emt 0:01:32]} b4 {[%emt 0:00:22]} 63. Rde1 {[%emt 0:00:31]} Rhh2 {[%emt 0:00:52]} 64. Re5 {[%emt 0:00:10]} Ra2 {[%emt 0:00:36]} 65. Kb1 {[%emt 0:00:01]} Rhb2+ {[%emt 0:00:48]} 66. Kc1 {[%emt 0:00:01]} Rb3 {[%emt 0:00:54]} 67. R1e4 {[%emt 0:00:47]} Rh2 {[%emt 0:00:29]} 68. Re1 {[%emt 0:01:05]} Ra3 {[%emt 0:00:12]} 69. Kb1 {[%emt 0:00:02]} Rg2 {[%emt 0:00:15]} 70. R1e4 {[%emt 0:00:43]} Rf3 {[%emt 0:00:19]} 71. Re1 {[%emt 0:00:05]} Rff2 {[%emt 0:00:16]} 72. Ka1 {[%emt 0:00:47]} b5 {[%emt 0:00:12]} 73. Re8 {[%emt 0:00:06]} b3 {[%emt 0:00:29]} 74. R8e3 {[%emt 0:01:18]} Ra2+ {[%emt 0:00:19]} 75. Kb1 {[%emt 0:00:00]} Rgb2+ {[%emt 0:00:26]} 76. Kc1 {[%emt 0:00:01]} Rc2+ {[%emt 0:00:16]} 77. Kb1 {[%emt 0:00:03]} Rcb2+ {[%emt 0:00:06]} 78. Kc1 {[%emt 0:00:01]} Ka5 {[%emt 0:00:17]} 79. Rh1 {[%emt 0:01:10]} Ka4 {[%emt 0:01:01]} 80. Re8 {[%emt 0:01:47]} Rc2+ {[%emt 0:02:00]} 81. Kb1 {[%emt 0:00:01]} Ka3 {[%emt 0:00:26]} 82. Ra8+ {[%emt 0:00:15]} Kb4 {[%emt 0:00:02]} 83. Rxa2 {[%emt 0:01:21]} Rxa2 {[%emt 0:00:09]} 84. Rh8 {[%emt 0:00:06]} Rg2 {[%emt 0:00:21]} 85. Rf8 {[%emt 0:00:35]} Rg4 {[%emt 0:00:03]} 86. Kb2 {[%emt 0:00:31]} Rg2+ {[%emt 0:03:07]} 1/2-1/2

[Event "Lliga Catalana 2024"]
[Site "Catalonia"]
[Date "2024.02.10"]
[Round "4.2"]
[White "Narciso Dublan, Marc"]
[Black "Ootes, Lars"]
[Result "1-0"]
[ECO "B08"]
[WhiteElo "2420"]
[BlackElo "2388"]
[Annotator "TA"]
[PlyCount "77"]
[EventDate "2024.01.18"]
[EventType "team-tourn"]
[EventCountry "ESP"]
[SourceTitle "playchess.com"]
[Source "ChessBase"]
[SourceQuality "1"]
[TimeControl "5400+30"]

{[%evp 15,77,37,36,10,16,19,28,20,26,32,27,20,26,23,27,18,35,31,89,80,97,93,105,104,145,103,150,104,135,124,123,121,175,141,155,112,131,90,165,163,173,118,123,118,152,158,154,152,158,156,451,566,573,438,2689,2643,29982,29983,29979,1060,1061,1061,29987,29988]} 1. e4 {[%emt 0:00:05]} d6 {[%emt 0:05:00]} 2. d4 {[%emt 0:00:14][%cal Bd2d4,Bd4d5][%mdl 32]} Nf6 {[%emt 0:00:13]} 3. Nc3 {[%emt 0:00:19]} g6 {[%emt 0:00:04]} 4. Nf3 {[%emt 0:00:35]} Bg7 {[%emt 0:00:05]} 5. Be2 {[%emt 0:00:25]} O-O {[%emt 0:00:09]} 6. O-O {[%emt 0:00:08]} Nc6 {[%emt 0:00:23]} 7. d5 {[%emt 0:00:19]} Ne5 {[%emt 0:00:16]} 8. Nxe5 {[%emt 0:00:25]} dxe5 {[%emt 0:00:06]} 9. Qd3 {[%emt 0:01:52]} e6 {[%emt 0:01:32]} 10. dxe6 {[%emt 0:00:08]} Bxe6 {[%emt 0:00:37]} 11. Qb5 {[%emt 0:00:10][%csl LRb7,LRe5] White has an edge.} b6 {[%emt 0:13:31]} 12. Rd1 {[%emt 0:03:17]} Qe8 {[%emt 0:00:36]} 13. a4 {[%emt 0:10:57]} (13. Qxe5 Nd5 14. Qg3 Nxc3 15. bxc3 Bf5 $16 (15... Qa4 16. Bf4 $15)) 13... c6 {[%emt 1:14:28]} 14. Qxe5 {[%emt 1:18:36]} Nd5 $1 {[%emt 0:00:00]} 15. Qg3 {[%emt 0:00:00]} Nxc3 {[%emt 0:00:00]} 16. bxc3 {[%emt 0:00:00]} Qe7 {[%emt 0:00:00]} (16... Bf5 $14) 17. Bf4 $36 {[%emt 0:00:00][%mdl 2048] Black is under strong pressure.} Rfd8 {[%emt 0:00:00]} 18. Bd6 {[%emt 0:00:00]} Qb7 {[%emt 0:00:00]} 19. h4 {[%emt 0:00:00][%cal Bh2h4,Bh4h5][%mdl 32]} f6 {[%emt 0:00:00]} 20. f4 {[%emt 0:00:00]} Qf7 {[%emt 0:00:00]} (20... Bd5 $142) 21. e5 {[%emt 0:00:00]} ({White should try} 21. a5) 21... Bf8 {[%emt 0:00:00]} 22. h5 {[%emt 0:00:00] White has more active pieces.} Bxd6 {[%emt 0:00:00]} 23. exd6 {[%emt 0:00:00]} Kg7 {[%emt 0:00:00]} (23... f5 $16 24. Rd2 Qf6) 24. Rd2 {[%emt 0:00:00]} Rd7 {[%emt 0:00:00]} 25. Rad1 {[%emt 0:00:00]} Bf5 {[%emt 0:00:00]} 26. Qf3 {[%emt 0:06:00]} Rc8 {[%emt 0:00:00]} (26... Qe6 $16 {keeps fighting.} 27. a5 (27. Qxc6 Qe3+ 28. Kh1 Rad8 $16) 27... gxh5) 27. Ba6 $18 {[%emt 0:00:00]} Rcd8 {[%emt 0:02:51]} 28. Qxc6 {[%emt 0:00:00]} (28. g4 $18 Be6 29. hxg6 (29. Qxc6 Bxg4 30. Re1 Qf8 $11) 29... hxg6 30. Rd4 (30. Qxc6 Bxg4 31. Re1 Re8 $11)) 28... Bg4 $16 {[%emt 0:00:42]} 29. Be2 {[%emt 0:00:00]} Qe6 {[%emt 0:00:21]} 30. Bxg4 {[%emt 0:00:00]} Qxg4 {[%emt 0:00:02]} 31. hxg6 {[%emt 0:00:00]} hxg6 {[%emt 0:00:10]} 32. Qe4 {[%emt 0:00:44]} g5 $2 {[%emt 0:03:22] [#] Loses the game.} (32... Rc8 $16 {was worth a try.} 33. Re1 Qf5) 33. Rf1 $18 {[%emt 0:00:55]} Rh8 {[%emt 0:01:56]} 34. Rd3 {[%emt 0:00:15]} Rhd8 {[%emt 0:00:34]} (34... Kf7 $142 35. Qd5+ Qe6 36. fxg5 Qxd5 37. Rxf6+ (37. Rxd5 Ke6 $18) 37... Kg7 38. Rxd5 Re8) 35. Rh3 {[%emt 0:01:02]} Rh8 {[%emt 0:00:28] Inhibits Rh7+.} 36. Rxh8 {[%emt 0:00:22]} Kxh8 {[%emt 0:00:01]} 37. Qg6 {[%emt 0:01:25]} (37. Qe8+ $142 Kg7 38. f5 Rxd6 39. Qe7+ Kg8 40. Qxd6 Qe4 41. Qxf6 (41. Qe6+ Qxe6 42. fxe6 Kf8 43. Re1 Ke7 44. g4 Kd8 45. e7+ Ke8) 41... Qb7 42. Rd1 (42. Qxg5+ Qg7 43. Qxg7+ Kxg7 44. f6+ Kf7 45. g4 Kg8 46. f7+ Kf8)) 37... Qe6 {[%emt 0:00:47] [#]} 38. Kf2 $1 {[%emt 0:00:42]} ({And not} 38. fxg5 Qe3+ 39. Rf2 Qe1+ 40. Kh2 Rh7+ 41. Kg3 Qe3+ 42. Rf3 Qe1+ 43. Rf2 Qe3+ 44. Rf3 Qe1+ 45. Rf2 $11) 38... Rh7 {[%emt 0:00:31] Repels Rh1} 39. Re1 {[%emt 0:00:23] Weighted Error Value: White=0.24 (precise) /Black=0.65.  Loses game:     	---       	Black=1      Mistake:       	White=2     	Black=5      Inaccurate:     	White=1     	Black=2      OK:         	White=10    	Black=6      Best:        	White=3     	Black=1      Strong:       	---       	Black=1} 1-0

[Event "Lliga Catalana 2024"]
[Site "Catalonia"]
[Date "2024.02.10"]
[Round "4.3"]
[White "Zhukov, Dmitry"]
[Black "Rahal, Michael A"]
[Result "0-1"]
[ECO "A31"]
[WhiteElo "2306"]
[BlackElo "2312"]
[Annotator "RC"]
[PlyCount "200"]
[EventDate "2024.01.18"]
[EventType "team-tourn"]
[EventCountry "ESP"]
[SourceTitle "playchess.com"]
[Source "ChessBase"]
[SourceQuality "1"]
[TimeControl "5400+30"]

1. e4 {[%emt 0:00:03]} c5 {[%emt 0:00:28]} 2. Nf3 {[%emt 0:00:08]} a6 {[%emt 0:00:06]} 3. c4 {[%emt 0:00:34]} e6 {[%emt 0:03:33]} 4. Nc3 {[%emt 0:00:17]} Qc7 {[%emt 0:00:44]} 5. d4 {[%emt 0:02:07]} cxd4 {[%emt 0:00:08]} 6. Nxd4 {[%emt 0:00:00]} Nf6 {[%emt 0:00:48]} 7. Bd3 {[%emt 0:01:15]} d6 {[%emt 0:02:36]} 8. O-O {[%emt 0:01:15]} Be7 {[%emt 0:00:48]} 9. Qe2 {[%emt 0:00:36]} O-O {[%emt 0:05:07]} 10. Be3 {[%emt 0:03:40]} b6 {[%emt 0:02:08]} 11. Rac1 {[%emt 0:01:34]} Bb7 {[%emt 0:00:41]} 12. Rfd1 {[%emt 0:00:33]} Nbd7 {[%emt 0:01:12]} 13. f3 {[%emt 0:01:51]} Rac8 {[%emt 0:00:49]} 14. b3 {[%emt 0:10:41]} Qb8 {[%emt 0:00:27]} 15. Qf2 {[%emt 0:01:24]} Rfe8 {[%emt 0:02:12]} 16. Bf1 {[%emt 0:11:58]} Bd8 {[%emt 0:04:23]} 17. g4 {[%emt 0:03:11]} Bc7 {[%emt 0:08:36]} 18. g5 {[%emt 0:01:41]} Nh5 {[%emt 0:00:17]} 19. Bh3 {[%emt 0:00:15]} g6 {[%emt 0:04:11]} 20. Nde2 {[%emt 0:03:00]} Rcd8 {[%emt 0:02:53]} 21. Bg4 {[%emt 0:09:52]} Ng7 {[%emt 0:00:48]} 22. f4 {[%emt 0:00:14]} f5 {[%emt 0:02:45]} 23. exf5 {[%emt 0:06:27]} Nxf5 {[%emt 0:02:26]} 24. Bxf5 {[%emt 0:00:11]} gxf5 {[%emt 0:05:28]} 25. Ng3 {[%emt 0:01:40]} Ba8 {[%emt 0:01:12]} 26. Nh5 {[%emt 0:05:01]} Qb7 {[%emt 0:04:46]} 27. Nd5 {[%emt 0:03:38]} exd5 {[%emt 0:01:52]} 28. cxd5 {[%emt 0:00:06]} b5 {[%emt 0:02:18]} 29. Kf1 {[%emt 0:03:14]} b4 {[%emt 0:13:38]} 30. Qg3 {[%emt 0:04:07]} Bb6 {[%emt 0:09:43]} 31. Nf6+ {[%emt 0:03:57]} Kh8 {[%emt 0:00:40]} 32. Nxe8 {[%emt 0:04:56]} Rxe8 {[%emt 0:00:34]} 33. Bxb6 {[%emt 0:01:00]} Nxb6 {[%emt 0:04:08]} 34. Re1 {[%emt 0:01:14]} Qf7 {[%emt 0:02:42]} 35. Qd3 {[%emt 0:04:00]} Nxd5 {[%emt 0:02:51]} 36. Rxe8+ {[%emt 0:06:10]} Qxe8 {[%emt 0:00:12]} 37. Re1 {[%emt 0:00:14]} Qd7 {[%emt 0:02:40]} 38. h4 {[%emt 0:00:38]} Bc6 {[%emt 0:00:34]} 39. Kf2 {[%emt 0:01:44]} Kg8 {[%emt 0:02:05]} 40. Kg3 {[%emt 0:02:47]} a5 {[%emt 0:01:27]} 41. h5 {[%emt 0:00:23]} Qg7 {[%emt 0:02:00]} 42. Rc1 {[%emt 0:00:27]} Nc3 {[%emt 0:01:05]} 43. Kh4 {[%emt 0:01:51]} Qd7 {[%emt 0:00:58]} 44. h6 {[%emt 0:00:56]} Qa7 {[%emt 0:01:50]} 45. Rxc3 {[%emt 0:01:25]} bxc3 {[%emt 0:00:49]} 46. Qc4+ {[%emt 0:00:24]} Kf8 {[%emt 0:00:54]} 47. Qxc6 {[%emt 0:00:29]} Qf2+ {[%emt 0:00:19]} 48. Kh3 {[%emt 0:00:07]} Qe3+ {[%emt 0:00:20]} 49. Kh4 {[%emt 0:01:07]} Qxf4+ {[%emt 0:00:09]} 50. Kh3 {[%emt 0:00:04]} Qe3+ {[%emt 0:00:42]} 51. Kh2 {[%emt 0:00:11]} Qe2+ {[%emt 0:00:25]} 52. Kg1 {[%emt 0:00:22]} Qe1+ {[%emt 0:00:32]} 53. Kh2 {[%emt 0:00:08]} Qh4+ {[%emt 0:00:11]} 54. Kg1 {[%emt 0:00:06]} Qxg5+ {[%emt 0:00:08]} 55. Kf2 {[%emt 0:00:05]} Qf4+ {[%emt 0:00:22]} 56. Kg1 {[%emt 0:00:09]} Qe3+ {[%emt 0:00:46]} 57. Kf1 {[%emt 0:00:29]} Qf4+ {[%emt 0:00:42]} 58. Kg1 {[%emt 0:00:10]} Qc1+ {[%emt 0:01:20]} 59. Kf2 {[%emt 0:00:08]} Qxh6 {[%emt 0:00:29]} 60. Qxc3 {[%emt 0:01:15]} Qh2+ {[%emt 0:01:33]} 61. Kf1 {[%emt 0:00:21]} Qe5 {[%emt 0:00:00]} 62. Qc8+ {[%emt 0:00:50]} Kf7 {[%emt 0:00:00]} 63. Qb7+ {[%emt 0:00:16]} Kg6 {[%emt 0:00:01]} 64. Qg2+ {[%emt 0:00:09]} Kf6 {[%emt 0:00:09]} 65. Qa8 {[%emt 0:00:11]} Qa1+ {[%emt 0:00:20]} 66. Kf2 {[%emt 0:00:37]} Qxa2+ {[%emt 0:00:11]} 67. Kf1 {[%emt 0:00:05]} Qb1+ {[%emt 0:00:36]} 68. Kf2 {[%emt 0:00:10]} Qc2+ {[%emt 0:00:07]} 69. Kf1 {[%emt 0:00:08]} Qd3+ {[%emt 0:00:33]} 70. Kf2 {[%emt 0:00:21]} Qd4+ {[%emt 0:00:36]} 71. Kf1 {[%emt 0:00:14]} Qf4+ {[%emt 0:00:10]} 72. Kg1 {[%emt 0:00:05]} Qe5 {[%emt 0:01:32]} 73. Qh8+ {[%emt 0:00:54]} Kg6 {[%emt 0:00:32]} 74. Qg8+ {[%emt 0:00:18]} Kh6 {[%emt 0:00:09]} 75. Kf2 {[%emt 0:00:49]} Qd4+ {[%emt 0:00:35]} 76. Kf1 {[%emt 0:00:15]} Qf4+ {[%emt 0:00:49]} 77. Ke1 {[%emt 0:00:10]} Qe5+ {[%emt 0:00:33]} 78. Kf1 {[%emt 0:00:15]} d5 {[%emt 0:00:38]} 79. Qf8+ {[%emt 0:00:12]} Kh5 {[%emt 0:00:17]} 80. Qf7+ {[%emt 0:00:06]} Kg4 {[%emt 0:00:26]} 81. Qxh7 {[%emt 0:07:05]} Qa1+ {[%emt 0:00:50]} 82. Kf2 {[%emt 0:00:00]} Qb2+ {[%emt 0:00:05]} 83. Kf1 {[%emt 0:00:00]} Qxb3 {[%emt 0:00:41]} 84. Qg6+ {[%emt 0:00:00]} Kf4 {[%emt 0:00:20]} 85. Qh6+ {[%emt 0:00:00]} Ke4 {[%emt 0:00:22]} 86. Qe6+ {[%emt 0:00:00]} Kd4 {[%emt 0:00:13]} 87. Qf6+ {[%emt 0:00:00]} Kc4 {[%emt 0:00:16]} 88. Qc6+ {[%emt 0:00:00]} Kb4 {[%emt 0:00:54]} 89. Qb6+ {[%emt 0:00:00]} Ka4 {[%emt 0:00:23]} 90. Qd6 {[%emt 0:00:00]} Qc4+ {[%emt 0:00:33]} 91. Kf2 {[%emt 0:00:00]} f4 {[%emt 0:00:32]} 92. Qd7+ {[%emt 0:00:00]} Kb3 {[%emt 0:00:12]} 93. Qb7+ {[%emt 0:00:00]} Ka2 {[%emt 0:00:28]} 94. Qf7 {[%emt 0:00:00]} a4 {[%emt 0:00:09]} 95. Ke1 {[%emt 0:00:00]} Qd4 {[%emt 0:00:54]} 96. Qc7 {[%emt 0:00:00]} a3 {[%emt 0:01:04]} 97. Qc2+ {[%emt 0:00:00]} Qb2 {[%emt 0:00:02]} 98. Qc5 {[%emt 0:00:00]} d4 {[%emt 0:00:59]} 99. Qd5+ {[%emt 0:00:00]} Ka1 {[%emt 0:00:14]} 100. Kd1 {[%emt 0:00:04]} d3 {[%emt 0:00:49]} 0-1

[Event "Lliga Catalana 2024"]
[Site "Catalonia"]
[Date "2024.02.10"]
[Round "4.4"]
[White "Tallo Dominguez, Imar"]
[Black "Benedetti, Julio"]
[Result "1-0"]
[ECO "B30"]
[WhiteElo "2311"]
[BlackElo "2252"]
[Annotator "TA"]
[PlyCount "53"]
[EventDate "2024.01.18"]
[EventType "team-tourn"]
[EventCountry "ESP"]
[SourceTitle "playchess.com"]
[Source "ChessBase"]
[SourceQuality "1"]
[TimeControl "5400+30"]

{[%evp 9,53,10,32,35,39,19,59,60,52,42,75,79,101,105,101,77,103,97,97,102,110,106,115,109,105,110,175,149,152,160,146,124,133,-41,-27,-38,12,12,539,0,0,-18,190,182,639,615]} 1. e4 {[%emt 0:00:04]} c5 {[%emt 0:00:34]} 2. Nf3 {[%emt 0:00:09]} Nc6 {[%emt 0:00:46]} 3. Bb5 {[%emt 0:00:22]} e6 {[%emt 0:02:25]} 4. Bxc6 {[%emt 0:00:52]} bxc6 {[%emt 0:00:59]} 5. O-O {[%emt 0:00:48]} Qc7 {[%emt 0:02:59]} 6. Re1 {[%emt 0:01:05]} Be7 {[%emt 0:03:24]} 7. d4 {[%emt 0:02:40]} cxd4 {[%emt 0:09:46]} (7... d5 {looks sharper.} 8. dxc5 Nf6 9. Nc3 Bxc5 10. exd5 cxd5 11. Nxd5 Nxd5 12. Qxd5 Bb7) 8. Qxd4 {[%emt 0:00:09] White is slightly better.} f6 {[%emt 0:00:20]} 9. c4 {[%emt 0:03:50]} Qb6 {[%emt 0:10:53]} 10. Qd3 {[%emt 0:05:25]} a5 {[%emt 0:05:19][%cal Ba7a5,Ba5a4][%mdl 32]} 11. Nc3 a4 {[%emt 0:58:35]} 12. Be3 {[%emt 1:21:06]} Qb4 {[%emt 0:00:00]} 13. a3 {[%emt 0:00:00]} Qa5 {[%emt 0:00:00]} 14. Red1 {[%emt 0:00:00] White has more active pieces. The black rooks are passive.} Nh6 {[%emt 0:00:00]} 15. Bxh6 {[%emt 0:00:00]} gxh6 {[%emt 0:00:00] [#]} 16. e5 $1 {[%emt 0:00:00][%mdl 512]} O-O {[%emt 0:00:00]} 17. Qe3 {[%emt 0:00:00]} Kg7 {[%emt 0:00:00]} (17... f5 $16) 18. Ne4 {[%emt 0:00:00]} f5 {[%emt 0:00:00]} 19. Nd6 {[%emt 0:00:00] Nxc8 is the strong threat. A dynamic duo of knights.} Ba6 {[%emt 0:00:00]} 20. Rd4 {[%emt 0:00:00]} Rab8 {[%emt 0:00:00]} 21. g4 $2 {[%emt 0:00:00]} (21. Rd2 $16) 21... Rb3 $15 {[%emt 0:00:00]} (21... c5 $2 22. Rf4 Rb3 23. Qe2 fxg4 24. Rxg4+ Kh8 25. Rg3 $17) 22. Qe2 {[%emt 0:00:00]} Qb6 {[%emt 0:05:30]} (22... Kh8 $15 23. gxf5 Rxf3 (23... Bxd6 24. Rxd6 Bxc4 25. Qxc4 $19) 24. Qxf3 Qxe5) 23. gxf5 $11 {[%emt 0:00:00]} exf5 {[%emt 0:00:00][%mdl 8192] [#]} (23... Kh8 $1 $11 {and Black is okay.} 24. f6 Bxd6 25. Rxd6 Bxc4 26. Qxc4 Rg8+ 27. Kh1 Qxf2) 24. Rad1 $2 {[%emt 0:00:00]} ({Only move:} 24. e6 $1 $18 dxe6 (24... Rxb2 $2 {perishes.} 25. Qe5+ Bf6 26. Qg3+ Kh8 27. Ne5 $18) (24... Rxf3 $2 25. exd7 Bd8 26. Rad1 $18) 25. Qxe6 Rxf3 (25... Bxd6 $2 26. Rxd6 Bc8 27. Qxh6+ Kg8 28. Ng5 $18) 26. Qxe7+ Kg6 27. Rad1) 24... Rxb2 {[%emt 0:00:00]} 25. Qe3 {[%emt 0:00:00] And now e6 would win.} Bxd6 $2 {[%emt 0:00:31]} (25... Rb1 $11 {and Black has nothing to worry.}) 26. exd6 $18 {[%emt 0:00:00] Nh4 would now be deadly.} Qd8 {[%emt 0:00:51]} (26... c5 27. Rh4 Kg8) 27. Qc3 {[%emt 0:07:30] Weighted Error Value: White=0.49/Black=0.80.  Loses game:     	---       	Black=2      Missed win:     	White=1     	---        Mistake:       	White=1     	Black=3      Inaccurate:     	---       	Black=3      OK:         	White=7     	Black=6      Best:        	White=3     	---} ({Weaker is} 27. Ne5 c5 $18) 1-0

[Event "Lliga Catalana 2024"]
[Site "Catalonia"]
[Date "2024.02.10"]
[Round "4.5"]
[White "Boix Moreno, Daniel"]
[Black "Ramirez Garcia, Jorge Alberto"]
[Result "0-1"]
[ECO "C65"]
[WhiteElo "2253"]
[BlackElo "2249"]
[Annotator "NA RC"]
[PlyCount "88"]
[EventDate "2024.01.18"]
[EventType "team-tourn"]
[EventCountry "ESP"]
[SourceTitle "playchess.com"]
[Source "ChessBase"]
[SourceQuality "1"]
[TimeControl "5400+30"]

1. e4 {[%emt 0:00:07]} e5 {[%emt 0:00:05]} 2. Nf3 {[%emt 0:00:12]} Nc6 {[%emt 0:00:05]} 3. Bb5 {[%emt 0:00:25]} Nf6 {[%emt 0:00:21]} 4. d3 {[%emt 0:04:13]} Bc5 {[%emt 0:00:06]} 5. c3 {[%emt 0:00:11]} O-O {[%emt 0:00:23]} 6. Qe2 {[%emt 0:01:08]} d5 {[%emt 0:09:12]} 7. Bg5 {[%emt 0:01:02]} dxe4 {[%emt 0:07:39]} 8. dxe4 {[%emt 0:00:08]} h6 {[%emt 0:04:54]} 9. Bh4 {[%emt 0:01:14]} Qd6 {[%emt 0:09:52]} 10. Nbd2 {[%emt 0:01:16]} Nh5 {[%emt 0:00:25]} 11. Bg3 {[%emt 0:03:23]} Nxg3 {[%emt 1:02:58]} 12. hxg3 {[%emt 1:23:11]} Re8 {[%emt 0:00:00]} 13. Nc4 {[%emt 0:00:00]} Qf6 {[%emt 0:00:00]} 14. Ne3 {[%emt 0:00:00]} Be6 {[%emt 0:00:00]} 15. O-O {[%emt 0:00:00]} Rad8 {[%emt 0:00:00]} 16. Rfd1 {[%emt 0:00:00]} Bxe3 {[%emt 0:00:00]} 17. Qxe3 {[%emt 0:00:00]} Bg4 {[%emt 0:00:00]} 18. Rxd8 {[%emt 0:00:00]} Rxd8 {[%emt 0:00:00]} 19. Bxc6 {[%emt 0:00:00]} Qxc6 {[%emt 0:00:00]} 20. Nxe5 {[%emt 0:00:00]} Qe6 {[%emt 0:00:00]} 21. Nf3 {[%emt 0:00:00]} b6 {[%emt 0:00:00]} 22. Nd4 {[%emt 0:00:00]} Qd7 {[%emt 0:00:00]} 23. b4 {[%emt 0:00:00]} Qa4 {[%emt 0:00:00]} 24. Qf4 {[%emt 0:00:00]} c5 {[%emt 0:02:27]} 25. bxc5 {[%emt 0:00:00]} bxc5 {[%emt 0:00:02]} 26. Nb3 {[%emt 0:00:04]} Rd1+ {[%emt 0:00:20]} 27. Rxd1 {[%emt 0:03:08]} Bxd1 {[%emt 0:00:03]} 28. Qb8+ {[%emt 0:02:27]} Kh7 {[%emt 0:00:12]} 29. Nxc5 {[%emt 0:00:38]} Qxa2 {[%emt 0:01:33]} 30. Nd7 {[%emt 0:00:46]} a5 {[%emt 0:01:15]} 31. f4 {[%emt 0:01:17]} Bc2 {[%emt 0:02:05]} 32. Nf8+ {[%emt 0:00:23]} Kg8 {[%emt 0:00:07]} 33. Ne6+ {[%emt 0:00:55]} Kh7 {[%emt 0:00:06]} 34. Nf8+ {[%emt 0:00:16]} Kg8 {[%emt 0:00:01]} 35. Ng6+ {[%emt 0:00:49]} Kh7 {[%emt 0:00:11]} 36. Qh8+ {[%emt 0:00:23]} Kxg6 {[%emt 0:00:06]} 37. f5+ {[%emt 0:00:08]} Kh5 {[%emt 0:00:58]} 38. Qxg7 {[%emt 0:00:55]} Bxe4 {[%emt 0:00:50]} 39. g4+ {[%emt 0:00:35]} Kh4 {[%emt 0:00:08]} 40. Qxh6+ {[%emt 0:00:34]} Kxg4 {[%emt 0:00:34]} 41. Qh3+ {[%emt 0:00:30]} Kg5 {[%emt 0:02:08]} 42. Qe3+ {[%emt 0:00:12]} Kxf5 {[%emt 0:00:05]} 43. g4+ {[%emt 0:00:13]} Ke5 {[%emt 0:00:36]} 44. Qg5+ {[%emt 0:00:57]} Ke6 {[%emt 0:00:31]} 0-1